bitfinex-derivatives/quotes_BTCF0:USTF0_20240905
["timestamp","ask_amount","ask_price","bid_price","bid_amount"]
[1725572699524,0.11992374,56155.0,56154.0,0.36106726]
[1725572699833,0.12292374,56155.0,56154.0,0.48029019]
[1725572700223,0.12592374,56155.0,56154.0,0.37029019]
[1725572700428,0.12592374,56155.0,56154.0,0.00922293]
[1725572700628,0.12592374,56155.0,56150.0,0.11]
[1725572700937,0.002,56151.0,56150.0,0.11]
[1725572701128,0.09089294,56151.0,56150.0,0.11]
[1725572701639,0.002,56151.0,56150.0,0.11]
[1725572701829,0.002,56151.0,56150.0,0.111]
[1725572702026,0.09089294,56151.0,56150.0,0.001]
[1725572702723,0.002,56151.0,56150.0,0.002]
[1725572702922,0.002,56151.0,56150.0,0.001]
[1725572703135,0.002,56151.0,56150.0,0.002]
[1725572704935,0.002,56151.0,56150.0,0.07296523]
[1725572705125,0.002,56151.0,56150.0,0.002]
[1725572705534,0.002,56151.0,56150.0,0.07295837]
[1725572706339,0.002,56151.0,56150.0,0.08218888]
[1725572706527,0.002,56151.0,56150.0,0.01123051]
[1725572710833,0.002,56151.0,56150.0,0.08218888]
[1725572711538,0.002,56151.0,56150.0,0.01123051]
[1725572712841,0.002,56151.0,56150.0,0.17124888]
[1725572713032,0.002,56151.0,56150.0,0.10029051]
[1725572715442,0.002,56151.0,56150.0,0.18935051]
[1725572716137,0.002,56151.0,56150.0,1.41269051]
[1725572716342,0.32696726,56165.0,56150.0,1.30347022]
[1725572716540,0.32696726,56165.0,56164.0,0.14219319]
[1725572716745,0.32696726,56165.0,56164.0,0.089038]
[1725572717833,0.32996726,56165.0,56164.0,0.090038]
[1725572719939,0.33296726,56165.0,56164.0,0.091038]
[1725572721746,0.00626726,56165.0,56164.0,0.091038]
[1725572723945,0.00626726,56165.0,56164.0,0.201038]
[1725572724141,0.00626726,56165.0,56164.0,0.21013589]
[1725572730047,0.00626726,56165.0,56164.0,0.57093589]
[1725572730245,0.00626726,56165.0,56164.0,0.21013589]
[1725572730447,0.00626726,56165.0,56164.0,0.65997389]
[1725572735647,0.05950046,56165.0,56164.0,0.74901189]
[1725572735852,0.05949881,56165.0,56164.0,0.74901189]
[1725572736155,0.05949978,56165.0,56164.0,0.74901189]
[1725572736549,0.00626726,56165.0,56164.0,0.74901189]
[1725572737453,0.00626726,56165.0,56164.0,0.29917389]
[1725572737951,0.00626726,56165.0,56164.0,0.30789476]
[1725572738460,0.0772816,56165.0,56164.0,0.30789476]
[1725572739645,0.00626726,56165.0,56164.0,0.30789476]
[1725572740057,0.00626726,56165.0,56164.0,0.21885676]
[1725572740851,0.00626726,56165.0,56164.0,0.28973034]
[1725572741364,0.00626726,56165.0,56164.0,0.21885676]
[1725572741552,0.00626726,56165.0,56164.0,0.28973034]
[1725572742659,0.55302295,56174.0,56170.0,0.089028]
[1725572743054,0.089024,56173.0,56170.0,0.089028]
[1725572743560,0.089024,56173.0,56170.0,0.14221478]
[1725572743860,0.55398296,56174.0,56171.0,0.05318678]
[1725572743861,0.48296001,56174.0,56171.0,0.05318678]
[1725572744063,0.485,56174.0,56173.0,0.11]
[1725572744563,0.55602295,56174.0,56173.0,0.11]
[1725572744756,0.485,56174.0,56173.0,0.11]
[1725572745164,0.55610872,56174.0,56173.0,0.11]
[1725572745570,0.482,56174.0,56173.0,0.16318678]
[1725572745953,0.482,56174.0,56173.0,0.16418678]
[1725572746366,0.482,56174.0,56173.0,0.16518678]
[1725572746967,0.1212,56174.0,56173.0,0.16518678]
[1725572747767,0.089036,56165.0,56162.0,0.0709157]
[1725572747969,0.089036,56165.0,56159.0,0.00026726]
[1725572747970,0.089041,56162.0,56159.0,0.00026726]
[1725572748268,0.089041,56162.0,56147.0,0.10651968]
[1725572748269,0.089054,56154.0,56153.0,0.05329768]
[1725572748463,0.089058,56151.0,56150.0,0.05329768]
[1725572748768,0.08906,56150.0,56149.0,0.05329768]
[1725572749065,0.08906,56150.0,56147.0,0.089064]
[1725572749066,0.089062,56149.0,56147.0,0.089064]
[1725572749368,0.3628,56148.0,56147.0,0.089064]
[1725572749571,0.3508,56148.0,56146.0,0.16324703]
[1725572749769,0.14437104,56147.0,56146.0,0.1725739]
[1725572749972,0.091065,56147.0,56146.0,0.06257544]
[1725572750266,1.328985,56147.0,56146.0,0.00932687]
[1725572750454,0.089071,56143.0,56142.0,0.05351583]
[1725572750661,0.091071,56143.0,56142.0,0.00928994]
[1725572751666,1.225431,56143.0,56142.0,0.00928994]
[1725572751966,1.211431,56143.0,56142.0,0.00026726]
[1725572752167,1.682231,56143.0,56142.0,0.00026726]
[1725572752366,1.682231,56143.0,56132.0,0.05324857]
[1725572752665,0.091088,56133.0,56129.0,0.199093]
[1725572752864,0.002,56130.0,56128.0,0.3608]
[1725572753067,0.66018,56129.0,56128.0,0.00937859]
[1725572753259,0.66218,56129.0,56124.0,0.089101]
[1725572753462,0.66218,56129.0,56123.0,0.00018079]
[1725572753463,0.3628,56125.0,56123.0,0.00018079]
[1725572753663,0.091101,56124.0,56123.0,0.00018079]
[1725572753966,0.091101,56124.0,56110.0,0.05324857]
[1725572753967,0.089115,56116.0,56110.0,0.05324857]
[1725572754165,0.089115,56116.0,56109.0,0.089125]
[1725572754166,0.002,56112.0,56109.0,0.089125]
[1725572754468,0.002,56112.0,56111.0,0.45914976]
[1725572755559,0.003,56112.0,56111.0,0.45914976]
[1725572755763,1.13764,56112.0,56111.0,0.37002776]
[1725572755972,0.003,56112.0,56111.0,0.37002776]
[1725572756159,1.22676,56112.0,56111.0,0.37002776]
[1725572756562,1.22676,56112.0,56101.0,0.05324857]
[1725572756563,0.089136,56102.0,56101.0,0.05324857]
[1725572756764,0.089136,56102.0,56090.0,0.089155]
[1725572756765,0.7236,56102.0,56090.0,0.089155]
[1725572756964,0.002,56091.0,56090.0,0.089155]
[1725572757163,0.3608,56093.0,56090.0,0.089155]
[1725572757576,0.3608,56093.0,56089.0,0.00910353]
[1725572757765,0.3608,56093.0,56087.0,0.3608]
[1725572757766,0.002,56090.0,56087.0,0.3608]
[1725572758074,0.089158,56088.0,56087.0,0.36984005]
[1725572758268,0.089158,56088.0,56087.0,0.00904005]
[1725572758571,0.089158,56088.0,56083.0,0.026]
[1725572758572,1.49568,56088.0,56083.0,0.026]
[1725572758872,0.002,56084.0,56083.0,0.026]
[1725572759169,0.091165,56084.0,56083.0,0.026]
[1725572759365,1.226085,56084.0,56083.0,0.026]
[1725572760071,1.13692,56084.0,56075.0,0.00938693]
[1725572760370,0.3648,56076.0,56070.0,1.00096]
[1725572760564,0.3648,56071.0,56070.0,1.089187]
[1725572761271,1.869026,56071.0,56070.0,0.18665472]
[1725572762179,1.870026,56071.0,56070.0,0.18665472]
[1725572762576,1.78084,56071.0,56061.0,0.089201]
[1725572762775,1.78084,56071.0,56049.0,0.6408]
[1725572762776,0.3648,56062.0,56049.0,0.6408]
[1725572762971,0.00026751,56061.0,56057.0,0.089208]
[1725572763367,0.53516,56060.0,56057.0,0.089208]
[1725572763574,0.53516,56059.0,56057.0,0.089208]
[1725572763770,0.53516,56060.0,56057.0,0.089208]
[1725572764173,0.53516,56059.0,56057.0,0.089208]
[1725572764672,0.53516,56058.0,56057.0,0.089208]
[1725572765178,1.13516,56058.0,56057.0,0.089208]
[1725572765368,1.13516,56058.0,56049.0,0.00910937]
[1725572765369,0.08921,56056.0,56049.0,0.00910937]
[1725572765569,0.08921,56056.0,56041.0,0.28]
[1725572765570,0.3648,56050.0,56041.0,0.28]
[1725572765770,0.004,56043.0,56042.0,0.206132]
[1725572765971,0.29831166,56045.0,56044.0,0.089228]
[1725572765972,0.24874921,56045.0,56044.0,0.089228]
[1725572766171,0.00026751,56048.0,56042.0,0.1169]
[1725572766172,0.00026751,56048.0,56047.0,0.089224]
[1725572766372,0.3618,56058.0,56057.0,0.089208]
[1725572766674,0.3608,56058.0,56057.0,0.089208]
[1725572767680,0.3618,56058.0,56057.0,0.089208]
[1725572768876,0.3628,56058.0,56057.0,0.089208]
[1725572769878,0.002,56058.0,56057.0,0.089208]
[1725572770183,0.002,56058.0,56057.0,0.214708]
[1725572771186,0.00026751,56063.0,56062.0,0.0892]
[1725572772580,0.00126751,56063.0,56062.0,0.0892]
[1725572772779,0.00226751,56063.0,56062.0,0.45]
[1725572775580,0.00226751,56063.0,56062.0,0.5392]
[1725572775888,0.28,56078.0,56073.0,0.089182]
[1725572776277,0.28,56078.0,56074.0,0.089181]
[1725572777187,0.3678,56075.0,56074.0,0.089181]
[1725572777782,0.3608,56075.0,56074.0,0.089181]
[1725572777978,0.3688,56075.0,56074.0,0.089181]
[1725572778797,0.015,56075.0,56074.0,0.178362]
[1725572779087,0.00026751,56080.0,56079.0,0.089173]
[1725572779289,0.00026751,56080.0,56079.0,0.449973]
[1725572779678,0.3608,56090.0,56079.0,1.584933]
[1725572779879,0.28092,56097.0,56086.0,0.3608]
[1725572780083,0.28,56097.0,56091.0,0.449953]
[1725572780284,0.28,56097.0,56092.0,0.089152]
[1725572780488,0.089143,56098.0,56092.0,0.089152]
[1725572781191,0.089143,56098.0,56091.0,0.3608]
[1725572781192,0.009,56097.0,56091.0,0.3608]
[1725572781390,0.009,56097.0,56096.0,0.089146]
[1725572782491,0.023,56097.0,56096.0,0.089146]
[1725572782988,0.00026751,56101.0,56097.0,0.089144]
[1725572782989,0.013,56098.0,56097.0,0.089144]
[1725572783995,0.013,56098.0,56096.0,0.001]
[1725572784198,0.002,56097.0,56096.0,0.001]
[1725572784696,0.015,56097.0,56096.0,0.001]
[1725572785084,0.3608,56103.0,56096.0,1.1766]
[1725572785290,0.3608,56103.0,56102.0,0.05297152]
[1725572785496,0.3608,56103.0,56100.0,0.0709157]
[1725572785694,0.002,56101.0,56100.0,0.1600547]
[1725572785890,0.002,56101.0,56100.0,0.089139]
[1725572786086,0.00026751,56106.0,56105.0,0.089131]
[1725572786593,0.00026751,56106.0,56105.0,0.623851]
[1725572786802,0.00026751,56106.0,56105.0,1.223851]
[1725572788105,0.3608,56118.0,56117.0,0.089112]
[1725572789390,0.3688,56118.0,56117.0,0.090112]
[1725572789798,0.3608,56118.0,56117.0,0.089112]
[1725572790003,0.3688,56118.0,56117.0,0.090112]
[1725572790594,0.3748,56118.0,56117.0,0.091112]
[1725572792607,0.3748,56118.0,56117.0,0.09896823]
[1725572797702,0.3748,56118.0,56117.0,0.37896823]
[1725572800206,0.014,56118.0,56117.0,0.37896823]
[1725572800903,0.014,56118.0,56117.0,0.46808023]
[1725572802108,0.014,56118.0,56117.0,0.00985623]
[1725572802710,0.103111,56118.0,56117.0,0.00985623]
[1725572808819,0.103111,56118.0,56117.0,0.09896823]
[1725572811326,0.15634684,56118.0,56117.0,0.09896823]
[1725572811515,0.103111,56118.0,56117.0,0.09896823]
[1725572816123,0.17426035,56118.0,56117.0,0.09896823]
[1725572816324,0.17426035,56118.0,56117.0,0.16964249]
[1725572816729,0.17426035,56118.0,56117.0,0.09896823]
[1725572817036,0.014,56118.0,56117.0,0.09896823]
[1725572817332,0.014,56118.0,56117.0,0.18808023]
[1725572817534,0.014,56118.0,56117.0,0.41245654]
[1725572817835,0.014,56118.0,56117.0,0.18756021]
[1725572818332,0.05337165,56120.0,56119.0,0.089109]
[1725572819631,0.05937165,56120.0,56119.0,0.090109]
[1725572820036,0.006,56120.0,56119.0,0.090109]
[1725572820435,0.05937199,56120.0,56119.0,0.090109]
[1725572820940,0.006,56120.0,56119.0,0.090109]
[1725572821140,0.008,56120.0,56119.0,0.091109]
[1725572821734,0.06137199,56120.0,56119.0,0.091109]
[1725572823226,0.03688855,56120.0,56119.0,0.091109]
[1725572823636,0.03688855,56120.0,56119.0,0.212609]
[1725572825338,0.03088855,56120.0,56119.0,0.211609]
[1725572825646,0.03188855,56120.0,56119.0,0.210609]
[1725572827036,0.03088855,56120.0,56119.0,0.210609]
[1725572827236,0.03088763,56120.0,56119.0,0.210609]
[1725572827441,0.267327,56119.0,56118.0,0.076]
[1725572827635,0.83277463,56119.0,56118.0,0.076]
[1725572827937,1.8280003,56119.0,56118.0,0.076]
[1725572828140,1.9437003,56119.0,56118.0,0.076]
[1725572828441,2.2237003,56119.0,56118.0,0.076]
[1725572828838,2.2257003,56119.0,56118.0,0.076]
[1725572829339,2.35011157,56119.0,56118.0,0.076]
[1725572829639,2.2257003,56119.0,56118.0,0.076]
[1725572829830,2.34811157,56119.0,56118.0,0.076]
[1725572830031,2.35011157,56119.0,56118.0,0.077]
[1725572830343,2.23329644,56119.0,56118.0,0.078]
[1725572830840,2.27694467,56119.0,56118.0,0.078]
[1725572831042,2.27694463,56119.0,56118.0,0.078]
[1725572831341,2.19887077,56119.0,56118.0,0.078]
[1725572832037,0.178238,56113.0,56112.0,0.00026751]
[1725572832245,0.541038,56113.0,56112.0,0.00026751]
[1725572832447,1.675678,56113.0,56112.0,0.00026751]
[1725572832635,1.764797,56113.0,56112.0,0.00026751]
[1725572832837,1.85361478,56113.0,56112.0,0.00026751]
[1725572833445,1.85455504,56113.0,56112.0,0.00126751]
[1725572834441,1.765797,56113.0,56112.0,0.00126751]
[1725572834750,1.79769901,56113.0,56112.0,0.00226751]
[1725572835447,1.85749795,56113.0,56112.0,0.00226751]
[1725572835641,1.168797,56113.0,56112.0,0.00226751]
[1725572835847,0.634157,56113.0,56112.0,0.00226751]
[1725572837147,1.234157,56113.0,56112.0,0.00226751]
[1725572837551,1.768797,56113.0,56112.0,0.00226751]
[1725572837943,1.85745554,56113.0,56112.0,0.00226751]
[1725572838250,1.79770034,56113.0,56112.0,0.00226751]
[1725572838555,1.80541833,56113.0,56112.0,0.00226751]
[1725572839056,1.83985506,56113.0,56112.0,0.00226751]
[1725572839240,1.80541833,56113.0,56112.0,0.00226751]
[1725572842548,1.89453733,56113.0,56112.0,5.1e-07]
[1725572844651,2.00079969,56113.0,56112.0,5.1e-07]
[1725572845246,0.86615969,56113.0,56112.0,5.1e-07]
[1725572846454,0.75989733,56113.0,56112.0,5.1e-07]
[1725572846952,0.73099399,56113.0,56112.0,5.1e-07]
[1725572847345,0.64187499,56113.0,56112.0,5.1e-07]
[1725572853364,0.7052041,56113.0,56112.0,5.1e-07]
[1725572854550,0.60836711,56113.0,56112.0,5.1e-07]
[1725572854752,0.51924811,56113.0,56112.0,0.08912051]
[1725572854949,0.60836711,56113.0,56112.0,0.08912051]
[1725572857456,0.60836711,56113.0,56112.0,0.09661975]
[1725572858151,0.51924811,56113.0,56112.0,0.09661975]
[1725572858855,0.60836711,56113.0,56112.0,0.09661975]
[1725572859854,0.51924811,56113.0,56112.0,0.09661975]
[1725572860058,0.60836711,56113.0,56112.0,0.09661975]
[1725572861365,0.48481809,56113.0,56112.0,0.09661975]
[1725572861564,0.57393709,56113.0,56112.0,0.09661975]
[1725572862156,0.48481809,56113.0,56112.0,0.09661975]
[1725572866968,0.4848145,56113.0,56112.0,0.09661975]
[1725572867164,0.455919,56113.0,56112.0,0.09661975]
[1725572867964,0.54474374,56113.0,56112.0,0.09661975]
[1725572868165,0.455919,56113.0,56112.0,0.09661975]
[1725572868871,0.12401475,56113.0,56112.0,0.09661975]
[1725572869163,0.54474708,56113.0,56112.0,0.09661975]
[1725572869364,0.48481474,56113.0,56112.0,0.09661975]
[1725572869560,0.455919,56113.0,56112.0,0.09661975]
[1725572869757,0.48481455,56113.0,56112.0,0.09661975]
[1725572870166,0.455919,56113.0,56112.0,0.09661975]
[1725572870565,0.48481415,56113.0,56112.0,0.09661975]
[1725572871362,0.455919,56113.0,56112.0,0.09661975]
[1725572871668,0.48481421,56113.0,56112.0,0.09661975]
[1725572873671,0.48481421,56113.0,56107.0,0.00026751]
[1725572873672,0.089127,56108.0,56107.0,0.00026751]
[1725572873975,0.76907621,56108.0,56107.0,0.00026751]
[1725572874167,1.94579923,56108.0,56107.0,0.00026751]
[1725572875476,1.94779923,56108.0,56107.0,0.00126751]
[1725572875979,1.95179923,56108.0,56107.0,0.00226751]
[1725572876472,1.99545339,56108.0,56107.0,0.00226751]
[1725572876877,1.99546387,56108.0,56107.0,0.00226751]
[1725572877472,2.16530281,56108.0,56107.0,5.1e-07]
[1725572877671,2.08459103,56108.0,56107.0,5.1e-07]
[1725572878979,2.08459178,56108.0,56107.0,5.1e-07]
[1725572879480,2.04093623,56108.0,56107.0,5.1e-07]
[1725572880979,2.08459186,56108.0,56107.0,5.1e-07]
[1725572883485,2.11299727,56108.0,56107.0,5.1e-07]
[1725572885283,2.08409395,56108.0,56107.0,5.1e-07]
[1725572885479,2.00650142,56108.0,56107.0,5.1e-07]
[1725572886175,1.40650142,56108.0,56107.0,5.1e-07]
[1725572886375,0.87182142,56108.0,56107.0,5.1e-07]
[1725572888680,0.87182141,56108.0,56107.0,5.1e-07]
[1725572892986,0.97831751,56108.0,56107.0,5.1e-07]
[1725572893292,1.23262141,56108.0,56107.0,5.1e-07]
[1725572893588,1.33911751,56108.0,56107.0,5.1e-07]
[1725572893777,0.267405,56103.0,56102.0,2e-08]
[1725572893980,0.91815459,56103.0,56102.0,2e-08]
[1725572895076,0.3608,56094.0,56081.0,0.01841397]
[1725572895279,0.5348,56102.0,56073.0,0.140722]
[1725572895280,0.267543,56074.0,56073.0,0.140722]
[1725572895481,0.81130404,56074.0,56073.0,0.140722]
[1725572895678,0.738343,56074.0,56073.0,0.140722]
[1725572896280,0.80923458,56074.0,56073.0,0.140722]
[1725572896486,0.738343,56074.0,56073.0,0.154722]
[1725572896886,0.738343,56074.0,56073.0,0.140722]
[1725572897080,0.743343,56074.0,56073.0,0.140722]
[1725572897282,0.729343,56074.0,56073.0,0.140722]
[1725572897590,0.729343,56074.0,56068.0,0.00026751]
[1725572897591,0.178378,56069.0,56068.0,0.00026751]
[1725572897785,0.651178,56069.0,56068.0,0.00026751]
[1725572899191,0.651178,56069.0,56068.0,0.00226751]
[1725572904904,0.740367,56069.0,56068.0,0.00226751]
[1725572915396,0.79350381,56069.0,56068.0,0.00226751]
[1725572917309,0.740367,56069.0,56068.0,0.00226751]
[1725572920408,0.81121239,56069.0,56068.0,0.00226751]
[1725572920906,0.740367,56069.0,56068.0,0.00226751]
[1725572921501,0.79359397,56069.0,56068.0,0.00226751]
[1725572922315,0.740367,56069.0,56068.0,0.00226751]
[1725572923305,0.81133629,56069.0,56068.0,0.00226751]
[1725572924213,0.740367,56069.0,56068.0,0.00226751]
[1725572924412,0.76928886,56069.0,56068.0,0.00226751]
[1725572924915,0.76929013,56069.0,56068.0,0.00226751]
[1725572926011,0.85847913,56069.0,56068.0,0.00226751]
[1725572926207,0.96502958,56069.0,56068.0,0.00226751]
[1725572926402,0.85847913,56069.0,56068.0,0.00226751]
[1725572927608,0.85847913,56069.0,56068.0,5.1e-07]
[1725572927819,0.96502958,56069.0,56068.0,5.1e-07]
[1725572928511,0.89294103,56069.0,56068.0,5.1e-07]
[1725572932418,0.78294103,56069.0,56068.0,5.1e-07]
[1725572932623,0.89294103,56069.0,56068.0,5.1e-07]
[1725572935326,0.267591,56064.0,56063.0,0.00026751]
[1725572935521,0.80377689,56064.0,56063.0,0.00026751]
[1725572936414,0.96521092,56064.0,56063.0,0.00026751]
[1725572937214,0.97721092,56064.0,56063.0,0.00126751]
[1725572937510,0.88151113,56064.0,56063.0,0.00226751]
[1725572940415,0.88756293,56064.0,56063.0,0.00226751]
[1725572940618,0.99426272,56064.0,56063.0,0.00226751]
[1725572941228,1.52938272,56064.0,56063.0,0.00226751]
[1725572942418,1.42268293,56064.0,56063.0,0.00226751]
[1725572942721,0.88756293,56064.0,56063.0,0.00226751]
[1725572943530,0.92202541,56064.0,56063.0,0.00226751]
[1725572944818,0.72282841,56064.0,56063.0,0.00226751]
[1725572945332,0.70916893,56064.0,56063.0,0.00226751]
[1725572945631,0.8158665,56064.0,56063.0,0.00226751]
[1725572945835,0.7266695,56064.0,56063.0,0.00226751]
[1725572946517,0.61997193,56064.0,56063.0,0.00226751]
[1725572946927,0.50997193,56064.0,56063.0,0.00226751]
[1725572947125,0.61997193,56064.0,56063.0,0.00226751]
[1725572948030,0.61997057,56064.0,56063.0,0.00226751]
[1725572949336,0.72668564,56064.0,56063.0,0.00226751]
[1725572950031,0.72668564,56064.0,56063.0,0.00832813]
[1725572950826,0.36588564,56064.0,56063.0,0.00832813]
[1725572951028,0.72668564,56064.0,56063.0,0.00832813]
[1725572951427,0.68003872,56064.0,56063.0,0.00832813]
[1725572951626,0.5910488,56064.0,56063.0,0.00832813]
[1725572952435,0.61997158,56064.0,56063.0,0.00832813]
[1725572952728,0.5910488,56064.0,56063.0,0.00832813]
[1725572953036,0.67400016,56064.0,56063.0,0.00832813]
[1725572953228,0.584997,56064.0,56063.0,0.00832813]
[1725572954034,0.382997,56064.0,56063.0,0.00832813]
[1725572954531,0.4708,56064.0,56063.0,0.09752613]
[1725572954834,0.55982931,56064.0,56063.0,0.09752613]
[1725572955233,0.49972198,56064.0,56063.0,0.09752613]
[1725572955432,0.4708,56064.0,56063.0,0.09752613]
[1725572958629,0.55983146,56064.0,56063.0,0.09752613]
[1725572959028,0.55979768,56064.0,56063.0,0.09752613]
[1725572959230,0.49972107,56064.0,56063.0,0.09752613]
[1725572960431,0.4708,56064.0,56063.0,0.09752613]
[1725572962525,0.55978245,56064.0,56063.0,0.09752613]
[1725572963231,0.94972138,56064.0,56063.0,0.09752613]
[1725572964134,0.64897949,56064.0,56063.0,0.09752613]
[1725572964340,0.559997,56064.0,56063.0,0.09752613]
[1725572964538,0.64897655,56064.0,56063.0,0.09752613]
[1725572964736,0.559997,56064.0,56063.0,0.09752613]
[1725572965128,0.64897734,56064.0,56063.0,0.09752613]
[1725572965534,0.559997,56064.0,56063.0,0.09752613]
[1725572966634,0.5889169,56064.0,56063.0,0.09752613]
[1725572968140,0.58891779,56064.0,56063.0,0.09752613]
[1725572968530,0.22811779,56064.0,56063.0,0.09752613]
[1725572970626,0.22811779,56064.0,56063.0,0.09652613]
[1725572970938,0.23211779,56064.0,56063.0,0.09752613]
[1725572971438,0.23211779,56064.0,56063.0,0.09552613]
[1725572971632,0.23211779,56064.0,56063.0,0.09652613]
[1725572971633,0.23611779,56064.0,56063.0,0.09652613]
[1725572972039,0.23511779,56064.0,56063.0,0.09752613]
[1725572972546,0.23411779,56064.0,56063.0,0.09752613]
[1725572973042,0.12411743,56064.0,56063.0,0.09752613]
[1725572973638,0.095197,56064.0,56063.0,0.09752613]
[1725572974035,0.096197,56064.0,56063.0,0.09752613]
[1725572974831,0.097197,56064.0,56063.0,0.09652613]
[1725572975338,0.089197,56064.0,56063.0,0.09552613]
[1725572975539,0.097197,56064.0,56063.0,0.09752613]
[1725572983139,0.097197,56064.0,56063.0,0.16863659]
[1725572983440,0.008,56064.0,56063.0,0.16863659]
[1725572983642,0.008,56064.0,56063.0,1.39295459]
[1725572983842,0.008,56064.0,56063.0,1.32184413]
[1725572984533,0.004,56064.0,56063.0,1.32084413]
[1725572984732,0.008,56064.0,56063.0,1.32184413]
[1725572984935,0.008,56064.0,56063.0,1.32084413]
[1725572984936,0.004,56064.0,56063.0,1.32084413]
[1725572985130,0.008,56064.0,56063.0,1.32184413]
[1725572985534,0.07926365,56064.0,56063.0,1.32184413]
[1725572985734,0.07926365,56064.0,56063.0,1.41104213]
[1725572987438,0.008,56064.0,56063.0,1.41104213]
[1725572994249,0.08904864,56069.0,56068.0,0.26757]
[1725572994455,0.08904864,56069.0,56068.0,0.62837]
[1725572994650,0.08904864,56070.0,56069.0,0.178378]
[1725572994843,0.08904864,56070.0,56069.0,0.307978]
[1725572995144,0.08904864,56070.0,56069.0,1.54119213]
[1725572995944,0.08904864,56072.0,56070.0,0.178374]
[1725572996150,0.08904864,56071.0,56070.0,0.178374]
[1725572996359,0.08904864,56072.0,56071.0,0.267558]
[1725572996541,0.05334279,56073.0,56072.0,0.178368]
[1725572996851,0.07112372,56076.0,56075.0,0.089179]
[1725572997043,0.08944051,56079.0,56075.0,0.089179]
[1725572997044,0.07112372,56077.0,56076.0,0.089178]
[1725572997243,0.07112372,56077.0,56075.0,0.089179]
[1725572997244,0.08944051,56079.0,56078.0,0.089174]
[1725572999056,0.16055428,56079.0,56078.0,0.090174]
[1725572999750,0.16055428,56079.0,56078.0,0.091174]
[1725572999941,0.08944051,56079.0,56078.0,0.091174]
[1725573000550,0.16055428,56079.0,56078.0,0.091174]
[1725573001049,0.16054737,56079.0,56078.0,0.091174]
[1725573001450,0.08944051,56079.0,56078.0,0.091174]
[1725573001756,0.16054737,56079.0,56078.0,0.09729335]
[1725573002144,0.08944051,56079.0,56078.0,0.09729335]
[1725573002451,0.16054737,56079.0,56078.0,0.09729335]
[1725573003651,0.22519568,56079.0,56078.0,0.09729335]
[1725573004745,0.11835162,56079.0,56078.0,0.09729335]
[1725573005051,0.02917862,56079.0,56078.0,0.09729335]
[1725573006556,0.02917892,56079.0,56078.0,0.09729335]
[1725573007255,0.02917892,56079.0,56078.0,0.18646735]
[1725573010361,0.02917892,56079.0,56078.0,0.27564135]
[1725573011659,0.00026751,56079.0,56078.0,0.27564135]
[1725573012064,0.00026751,56079.0,56078.0,0.63644135]
[1725573012864,0.00026751,56079.0,56078.0,0.74644135]
[1725573013964,0.00026751,56079.0,56078.0,1.88140135]
[1725573018780,0.07139313,56079.0,56078.0,1.88140135]
[1725573020082,0.00026751,56079.0,56078.0,1.97057535]
[1725573020285,0.00026751,56079.0,56078.0,2.02397395]
[1725573020783,0.00026751,56079.0,56078.0,1.66317395]
[1725573021081,0.07112562,56081.0,56080.0,0.267513]
[1725573021376,0.07112562,56081.0,56080.0,0.377513]
[1725573021576,0.07112562,56081.0,56080.0,1.512473]
[1725573021775,0.07112562,56081.0,56080.0,1.644973]
[1725573022680,0.08917454,56086.0,56081.0,0.26751]
[1725573022681,0.07112562,56082.0,56081.0,0.26751]
[1725573022982,0.07112562,56083.0,56082.0,0.267504]
[1725573023179,0.07112562,56083.0,56082.0,0.377504]
[1725573023384,0.07112562,56083.0,56082.0,1.512424]
[1725573023779,0.00026751,56086.0,56082.0,1.512424]
[1725573023780,0.07112562,56084.0,56083.0,0.267498]
[1725573024083,0.00026751,56086.0,56083.0,0.267498]
[1725573024084,0.07112562,56085.0,56084.0,0.267495]
[1725573024275,0.00026751,56086.0,56085.0,0.267489]
[1725573025382,0.00026751,56086.0,56085.0,1.764169]
[1725573025571,0.00026751,56086.0,56085.0,1.8175676]
[1725573026180,0.05357851,56086.0,56085.0,1.8175676]
[1725573026382,0.053311,56086.0,56085.0,1.8175676]
[1725573026580,0.053311,56086.0,56085.0,1.8185676]
[1725573026784,0.02890154,56097.0,56092.0,0.089152]
[1725573026785,0.053311,56093.0,56092.0,0.089152]
[1725573026983,0.053311,56093.0,56092.0,0.539104]
[1725573027784,0.053311,56093.0,56092.0,0.669504]
[1725573028085,0.053311,56094.0,56093.0,0.178302]
[1725573028280,0.053311,56094.0,56093.0,0.414702]
[1725573028480,0.0713627,56098.0,56097.0,0.089144]
[1725573028881,0.00026751,56098.0,56097.0,0.089144]
[1725573029082,0.07131857,56098.0,56097.0,0.089144]
[1725573029487,0.00026751,56098.0,56097.0,0.089144]
[1725573029686,0.00026751,56098.0,56097.0,0.090144]
[1725573030586,0.00026751,56098.0,56097.0,0.289288]
[1725573030982,0.00026751,56098.0,56097.0,0.290288]
[1725573031187,0.05353622,56098.0,56097.0,0.290288]
[1725573031387,0.05353622,56098.0,56097.0,0.201144]
[1725573031886,0.05353622,56098.0,56097.0,0.20743261]
[1725573032089,0.05353193,56098.0,56097.0,0.20743261]
[1725573032283,0.05353208,56098.0,56097.0,0.20743261]
[1725573032887,0.00026751,56098.0,56097.0,0.20743261]
[1725573035599,0.00026751,56098.0,56097.0,0.29657661]
[1725573036000,0.00026751,56098.0,56097.0,0.20743261]
[1725573036298,0.05353208,56098.0,56097.0,0.29657661]
[1725573036596,0.00026751,56098.0,56097.0,0.20743261]
[1725573036799,0.00026751,56098.0,56097.0,0.29657661]
[1725573037898,0.00026751,56098.0,56097.0,0.20743261]
[1725573038095,0.05353208,56098.0,56097.0,0.20743261]
[1725573039505,0.05353208,56098.0,56097.0,0.29657661]
[1725573039700,0.05353208,56098.0,56097.0,0.20743261]
[1725573039997,0.05353208,56098.0,56097.0,0.29657661]
[1725573041702,0.00026751,56098.0,56097.0,1.43137661]
[1725573043801,0.00026751,56098.0,56097.0,1.32137661]
[1725573043996,0.00026751,56098.0,56097.0,1.43137661]
[1725573048103,0.00026751,56098.0,56097.0,1.43037661]
[1725573048306,0.449931,56106.0,56100.0,0.089139]
[1725573048307,0.08890703,56102.0,56100.0,0.089139]
[1725573048510,0.3608,56106.0,56097.0,1.25308861]
[1725573048511,0.08890703,56104.0,56103.0,0.089135]
[1725573048708,0.3608,56106.0,56105.0,0.089131]
[1725573048901,0.3608,56106.0,56105.0,0.27027308]
[1725573049301,0.1281,56108.0,56107.0,0.089128]